bitfinex-derivatives/quotes_BTCF0:USTF0_20251110
["timestamp","ask_amount","ask_price","bid_price","bid_amount"]
[1762774846180,0.5816598,106330.0,106320.0,0.22379999]
[1762774846677,0.5816598,106330.0,106320.0,0.12972219]
[1762774847382,0.48945703,106330.0,106320.0,0.12972219]
[1762774848186,0.48945703,106330.0,106320.0,0.22379999]
[1762774848682,0.48945703,106330.0,106320.0,0.12972219]
[1762774849277,0.48945703,106330.0,106320.0,0.22380009]
[1762774849686,0.5816598,106330.0,106320.0,0.22380009]
[1762774850187,0.48945703,106330.0,106320.0,0.22380009]
[1762774853285,0.48945703,106330.0,106320.0,0.12972219]
[1762774853584,0.48945703,106330.0,106320.0,0.08538219]
[1762774853585,0.5816598,106330.0,106320.0,0.08538219]
[1762774853777,0.1534578,106320.0,106310.0,0.13865729]
[1762774853976,0.2478586,106320.0,106310.0,0.05528514]
[1762774854987,0.33975215,106320.0,106310.0,0.05528514]
[1762774855288,0.34175215,106320.0,106310.0,0.05528514]
[1762774855889,0.34475215,106320.0,106310.0,0.05528514]
[1762774856489,0.34475215,106320.0,106310.0,0.14937184]
[1762774857188,0.34475215,106320.0,106310.0,0.22330641]
[1762774858394,0.34475215,106320.0,106310.0,0.21107094]
[1762774858691,0.25270399,106320.0,106310.0,0.21107094]
[1762774858892,0.34475215,106320.0,106310.0,0.08464862]
[1762774859093,0.1534667,106310.0,106300.0,0.1385254]
[1762774859394,0.24771289,106310.0,106300.0,0.13866649]
[1762774859593,0.24771289,106310.0,106300.0,0.23071465]
[1762774859784,0.24771289,106310.0,106300.0,0.13866649]
[1762774860289,0.24971289,106310.0,106300.0,0.13866649]
[1762774860891,0.24971289,106310.0,106300.0,0.14940141]
[1762774861293,0.24971289,106310.0,106300.0,0.22498372]
[1762774861795,0.25071289,106310.0,106300.0,0.22498372]
[1762774866192,0.25071289,106310.0,106300.0,0.22498382]
[1762774868299,0.57555289,106310.0,106300.0,0.22498382]
[1762774868893,0.57555289,106310.0,106300.0,0.13088832]
[1762774869093,0.57555289,106310.0,106300.0,0.22498382]
[1762774871593,0.57555289,106310.0,106300.0,0.13088832]
[1762774871993,0.57555289,106310.0,106300.0,0.22498382]
[1762774875106,0.57555289,106310.0,106300.0,0.13088832]
[1762774876906,0.57555289,106310.0,106300.0,0.10909832]
[1762774877107,0.57555289,106310.0,106300.0,0.13088832]
[1762774877907,0.57555289,106310.0,106300.0,0.22498382]
[1762774879202,0.57555289,106310.0,106300.0,0.13088832]
[1762774879400,0.57555289,106310.0,106300.0,0.22498382]
[1762774880814,0.54166787,106310.0,106300.0,0.29220075]
[1762774881807,0.54166787,106310.0,106300.0,0.22498382]
[1762774884814,0.54166787,106310.0,106300.0,0.29220075]
[1762774886011,0.44961971,106310.0,106300.0,0.29220075]
[1762774886513,0.54166787,106310.0,106300.0,0.29220075]
[1762774887106,0.54166787,106310.0,106300.0,0.38424891]
[1762774887306,0.54166787,106310.0,106300.0,0.29220075]
[1762774888117,0.54166787,106310.0,106300.0,0.22498382]
[1762774889418,0.54166787,106310.0,106300.0,0.13088832]
[1762774890222,0.54166787,106310.0,106300.0,0.22498392]
[1762774890620,0.54166787,106310.0,106300.0,0.30932968]
[1762774891122,0.57555289,106310.0,106300.0,0.22498392]
[1762774891318,0.57555289,106310.0,106300.0,0.30932968]
[1762774891719,0.57555289,106310.0,106300.0,0.22498392]
[1762774893118,0.66760105,106310.0,106300.0,0.08645832]
[1762774893522,0.1009856,106300.0,106290.0,0.06741056]
[1762774893825,0.33096995,106300.0,106290.0,0.06741056]
[1762774895221,0.33096995,106300.0,106290.0,0.07776434]
[1762774896024,0.33396995,106300.0,106290.0,0.07776434]
[1762774898223,0.33396995,106300.0,106290.0,0.15424954]
[1762774899512,0.14987363,106300.0,106290.0,0.15424954]
[1762774899727,0.33396995,106300.0,106290.0,0.15424954]
[1762774900124,0.14987363,106300.0,106290.0,0.15424954]
[1762774900325,0.33396995,106300.0,106290.0,0.08683898]
[1762774900528,0.1506644,106290.0,106280.0,0.13926093]
[1762774900727,0.56935059,106290.0,106280.0,0.13926093]
[1762774903027,0.56935059,106290.0,106280.0,0.14984199]
[1762774903329,0.56935059,106290.0,106280.0,0.05573029]
[1762774903531,0.56935059,106290.0,106280.0,0.19751094]
[1762774904230,0.56935059,106290.0,106280.0,0.29162424]
[1762774904930,0.56935059,106290.0,106280.0,0.19751094]
[1762774905130,0.56935059,106290.0,106280.0,0.13023529]
[1762774907032,0.56935059,106290.0,106280.0,0.23820859]
[1762774911023,0.56935059,106290.0,106280.0,0.22434859]
[1762774911323,0.56935059,106290.0,106280.0,0.13023529]
[1762774912135,0.56935059,106290.0,106280.0,0.22434859]
[1762774913830,0.56935059,106290.0,106280.0,0.13023529]
[1762774914837,0.56935059,106290.0,106280.0,0.22434859]
[1762774915339,0.56935059,106290.0,106280.0,0.13023529]
[1762774915634,0.56935059,106290.0,106280.0,0.22434859]
[1762774916035,0.56935059,106290.0,106280.0,0.13023529]
[1762774916929,0.56939718,106290.0,106280.0,0.13023529]
[1762774917835,0.56939718,106290.0,106280.0,0.22434859]
[1762774918432,0.56939718,106290.0,106280.0,0.13023529]
[1762774919329,0.56939718,106290.0,106280.0,0.22434859]
[1762774920740,0.56939718,106290.0,106280.0,0.13023529]
[1762774921331,0.56939718,106290.0,106280.0,0.21458105]
[1762774921532,0.66149193,106290.0,106280.0,0.13023529]
[1762774921843,0.56939718,106290.0,106280.0,0.13023529]
[1762774922140,0.66149193,106290.0,106280.0,0.13023529]
[1762774922841,0.56939718,106290.0,106280.0,0.13023529]
[1762774923032,0.56939718,106290.0,106280.0,0.21458105]
[1762774923240,0.56939718,106290.0,106280.0,0.30869435]
[1762774925441,0.56939718,106290.0,106280.0,0.32140435]
[1762774925835,0.56939718,106290.0,106280.0,0.22729105]
[1762774926144,0.56939718,106290.0,106280.0,0.32140435]
[1762774926446,0.47730243,106290.0,106280.0,0.32140435]
[1762774926645,0.56939718,106290.0,106280.0,0.23705859]
[1762774928137,0.37004803,106290.0,106280.0,0.32915334]
[1762774928439,0.37004803,106290.0,106280.0,0.32140435]
[1762774928645,0.46415243,106290.0,106280.0,0.4134991]
[1762774928843,0.37004803,106290.0,106280.0,0.4134991]
[1762774931246,0.37004803,106290.0,106280.0,0.53195196]
[1762774931448,0.15226269,106310.0,106300.0,0.1377156]
[1762774931743,0.15226269,106310.0,106300.0,0.1504256]
[1762774931744,0.47862072,106310.0,106300.0,0.1504256]
[1762774931943,0.57071547,106310.0,106300.0,0.1504256]
[1762774932649,0.57371547,106310.0,106300.0,0.1504256]
[1762774932940,0.57571547,106310.0,106300.0,0.1504256]
[1762774935345,0.25155547,106310.0,106300.0,0.1504256]
[1762774935543,0.57567547,106310.0,106300.0,0.1504256]
[1762774937147,0.25155547,106310.0,106300.0,0.1504256]
[1762774937443,0.37576912,106310.0,106300.0,0.24252035]
[1762774937641,0.37576912,106310.0,106300.0,0.32676249]
[1762774938246,0.05160912,106310.0,106300.0,0.32676249]
[1762774938445,0.37576912,106310.0,106300.0,0.32676249]
[1762774940247,0.05160912,106310.0,106300.0,0.32676249]
[1762774941248,0.05160912,106310.0,106300.0,0.24252035]
[1762774943648,0.05216912,106310.0,106300.0,0.24252035]
[1762774945240,0.05216912,106310.0,106300.0,0.32676249]
[1762774946150,0.00733912,106310.0,106300.0,0.32676249]
[1762774946342,0.02983912,106310.0,106300.0,0.32676249]
[1762774946843,0.02883912,106310.0,106300.0,0.32676249]
[1762774947449,0.05116912,106310.0,106300.0,0.32676249]
[1762774947650,0.05016912,106310.0,106300.0,0.32676249]
[1762774947847,0.00314109,106310.0,106300.0,0.32676249]
[1762774948247,0.04797109,106310.0,106300.0,0.32676249]
[1762774949150,0.04797109,106310.0,106300.0,0.65076249]
[1762774951452,0.00314109,106310.0,106300.0,0.65076249]
[1762774952252,0.02564109,106310.0,106300.0,0.65076249]
[1762774953256,0.00314109,106310.0,106300.0,0.65076249]
[1762774954753,0.04797109,106310.0,106300.0,0.55866774]
[1762774954952,0.04797109,106310.0,106300.0,0.65076249]
[1762774956868,0.02564109,106310.0,106300.0,0.65076249]
[1762774957051,0.00314109,106310.0,106300.0,0.65076249]
[1762774958851,0.00314109,106310.0,106300.0,0.56652035]
[1762774959257,0.00314109,106310.0,106300.0,0.80168035]
[1762774959859,0.00114109,106310.0,106300.0,0.80168035]
[1762774960055,0.37225,106330.0,106320.0,0.05811]
[1762774960250,0.37444803,106330.0,106320.0,0.1521879]
[1762774960445,0.46851703,106330.0,106320.0,0.1521879]
[1762774960851,0.37444803,106330.0,106320.0,0.1521879]
[1762774961052,0.46851703,106330.0,106320.0,0.1521879]
[1762774961253,0.46851703,106330.0,106320.0,0.22587487]
[1762774961562,0.47051703,106330.0,106320.0,0.22587487]
[1762774962259,0.37944803,106330.0,106320.0,0.22587487]
[1762774963056,0.47351713,106330.0,106320.0,0.22587487]
[1762774963261,0.57896188,106330.0,106320.0,0.31011701]
[1762774965253,0.57896188,106330.0,106320.0,0.29728701]
[1762774967356,0.57896188,106330.0,106320.0,0.07368697]
[1762774967564,0.1522579,106320.0,106310.0,0.13950489]
[1762774967756,0.24655068,106320.0,106310.0,0.13950489]
[1762774968557,0.24855068,106320.0,106310.0,0.13950489]
[1762774969961,0.24955068,106320.0,106310.0,0.02248109]
[1762774970165,0.24955068,106320.0,106310.0,0.11656779]
[1762774970460,0.24955068,106320.0,106310.0,0.13906779]
[1762774970954,0.24955068,106320.0,106310.0,0.13982779]
[1762774972058,0.24955068,106320.0,106310.0,0.11732779]
[1762774972362,0.24955068,106320.0,106310.0,0.13982779]
[1762774974464,0.24955068,106320.0,106310.0,0.04574109]
[1762774974665,0.34164543,106320.0,106310.0,0.04574109]
[1762774975865,0.24955068,106320.0,106310.0,0.04574109]
[1762774976962,0.34156657,106320.0,106310.0,0.04574109]
[1762774977468,0.34156657,106320.0,106310.0,0.02324109]
[1762774978763,0.34156657,106320.0,106310.0,0.00014109]
[1762774979469,0.34156657,106320.0,106310.0,0.02184109]
[1762774982167,0.34156657,106320.0,106310.0,0.04449109]
[1762774982470,0.34156657,106320.0,106310.0,0.02184109]
[1762774984756,0.34156657,106320.0,106310.0,0.00014109]
[1762774984969,0.43362189,106320.0,106310.0,1.09e-06]
[1762774985863,0.1388544,106290.0,106280.0,0.32069384]
[1762774986064,0.1388544,106290.0,106280.0,0.41274916]
[1762774986065,0.23310775,106290.0,106280.0,0.41274916]
[1762774986673,0.15003243,106290.0,106280.0,0.32069384]
[1762774986978,0.24208775,106290.0,106280.0,0.32069384]
[1762774987167,0.24208775,106290.0,106280.0,0.32469384]
[1762774987769,0.24208775,106290.0,106280.0,0.32269384]
[1762774988076,0.24208775,106290.0,106280.0,0.32369384]
[1762774988665,0.24208775,106290.0,106280.0,0.21675634]
[1762774988872,0.24208775,106290.0,106280.0,0.1325142]
[1762774989069,0.24208775,106290.0,106280.0,0.1315142]
[1762774989268,0.24208775,106290.0,106280.0,0.21575634]
[1762774989969,0.33414307,106290.0,106280.0,0.1315142]
[1762774990173,0.24208775,106290.0,106280.0,0.1078642]
[1762774990577,0.24208775,106290.0,106280.0,0.1305142]
[1762774991480,0.24208775,106290.0,106280.0,0.2246275]
[1762774991676,0.24208775,106290.0,106280.0,0.2381775]
[1762774992376,0.15003243,106290.0,106280.0,0.2381775]
[1762774992566,0.24208775,106290.0,106280.0,0.2381775]
[1762774993178,0.24208775,106290.0,106280.0,0.33023282]
[1762774994075,0.24208775,106290.0,106280.0,0.2381775]
[1762774994382,0.24208775,106290.0,106280.0,0.33023282]
[1762774994972,0.56624775,106290.0,106280.0,0.33023282]
[1762774995370,0.04694803,106290.0,106280.0,0.33023282]
[1762774995573,0.46521243,106290.0,106280.0,0.33023282]
[1762774995878,0.37110803,106290.0,106280.0,0.42228814]
[1762774996380,0.00219803,106290.0,106280.0,0.42228814]
[1762774996583,0.54340811,106300.0,106290.0,0.1520044]
[1762774996774,0.54560614,106300.0,106290.0,0.24405972]
[1762774997081,0.04708912,106300.0,106290.0,0.24405972]
[1762774997280,0.46330444,106300.0,106290.0,0.24405972]
[1762774997782,0.46530444,106300.0,106290.0,0.24405972]
[1762774997976,0.46630444,106300.0,106290.0,0.24405972]
[1762774998178,0.56040004,106300.0,106290.0,0.24405972]
[1762774999081,0.56040004,106300.0,106290.0,0.24505972]
[1762774999082,0.55740004,106300.0,106290.0,0.24505972]
[1762774999281,0.55940004,106300.0,106290.0,0.24505972]
[1762774999974,0.46330444,106300.0,106290.0,0.24605972]
[1762775000883,0.55740004,106300.0,106290.0,0.1540044]
[1762775001185,0.46330444,106300.0,106290.0,0.33030186]
[1762775001577,0.46330444,106300.0,106290.0,0.24605972]
[1762775002679,0.37124912,106300.0,106290.0,0.24605972]
[1762775003183,0.46330444,106300.0,106290.0,0.24605972]
[1762775003581,0.37124912,106300.0,106290.0,0.24605972]
[1762775003888,0.46330444,106300.0,106290.0,0.24605972]
[1762775004183,0.55740004,106300.0,106290.0,0.24605972]
[1762775004586,0.46330444,106300.0,106290.0,0.24605972]
[1762775005085,0.46330444,106300.0,106290.0,0.33030186]
[1762775006283,0.37132912,106300.0,106290.0,0.33030186]
[1762775006478,0.46338444,106300.0,106290.0,0.33030186]
[1762775006679,0.37132912,106300.0,106290.0,0.33030186]
[1762775007072,0.46338444,106300.0,106290.0,0.33030186]
[1762775007277,0.37132912,106300.0,106290.0,0.33030186]
[1762775009472,0.46338444,106300.0,106290.0,0.33030186]
[1762775009874,0.37132912,106300.0,106290.0,0.33030186]
[1762775010277,0.24407722,106320.0,106310.0,0.0457]
[1762775010480,0.57047525,106320.0,106310.0,0.0457]
[1762775010976,0.57047525,106320.0,106310.0,0.13775532]
[1762775011484,0.57247525,106320.0,106310.0,0.1537867]
[1762775011782,0.57347525,106320.0,106310.0,0.1537867]
[1762775012391,0.24927525,106320.0,106310.0,0.1537867]
[1762775012688,0.57343525,106320.0,106310.0,0.1537867]
[1762775014778,0.66549057,106320.0,106310.0,0.1537867]
[1762775014979,0.66549057,106320.0,106310.0,0.1397867]
[1762775015482,0.66549057,106320.0,106310.0,0.0457]
[1762775016388,0.66549057,106320.0,106310.0,0.1397868]
[1762775020196,0.48137993,106320.0,106310.0,0.1397868]
[1762775020490,0.66549057,106320.0,106310.0,0.0457]
[1762775023992,0.66549057,106320.0,106310.0,0.02239]
[1762775024492,0.1509469,106310.0,106300.0,0.33023055]
[1762775024686,0.24520025,106310.0,106300.0,0.13008323]
[1762775024889,0.24520025,106310.0,106300.0,0.20086893]
[1762775025094,0.24520025,106310.0,106300.0,0.11662679]
[1762775025299,0.24520025,106310.0,106300.0,0.22417893]
[1762775025501,0.24520025,106310.0,106300.0,0.13993679]
[1762775026702,0.24520025,106310.0,106300.0,0.23299211]
[1762775027400,0.24520025,106310.0,106300.0,0.22517893]
[1762775027602,0.24520025,106310.0,106300.0,0.31723425]
[1762775028099,0.15314493,106310.0,106300.0,0.33123425]
[1762775028300,0.24520025,106310.0,106300.0,0.33123425]
[1762775028796,0.24520025,106310.0,106300.0,0.31723425]
[1762775029199,0.24520025,106310.0,106300.0,0.33033425]
[1762775030005,0.05905803,106310.0,106300.0,0.33033425]
[1762775030206,0.15111335,106310.0,106300.0,0.33033425]
[1762775030606,0.24520025,106310.0,106300.0,0.33033425]
[1762775030992,0.04678803,106310.0,106300.0,0.33033425]
[1762775031209,0.37074803,106310.0,106300.0,0.24609211]
[1762775031405,0.37074803,106310.0,106300.0,0.42238957]
[1762775032506,0.37074803,106310.0,106300.0,0.33814743]
[1762775033403,0.37074803,106310.0,106300.0,0.45660029]
[1762775035302,0.37074803,106310.0,106300.0,0.24609211]
[1762775035704,0.37074803,106310.0,106300.0,0.33034041]
[1762775035905,0.37074803,106310.0,106300.0,0.24609211]
[1762775036101,0.37074803,106310.0,106300.0,0.33034021]
[1762775036303,0.37074803,106310.0,106300.0,0.42239553]
[1762775037813,0.37074803,106310.0,106300.0,0.33814743]
[1762775038008,0.37074803,106310.0,106300.0,0.42238891]
[1762775038418,0.37074803,106310.0,106300.0,0.33814743]
[1762775038914,0.37074803,106310.0,106300.0,0.24607105]
[1762775039114,0.46483553,106310.0,106300.0,0.15403679]
[1762775039311,0.05980109,106330.0,106320.0,0.05747]
[1762775039507,0.04894912,106330.0,106320.0,0.31809]
[1762775039714,0.04894912,106330.0,106320.0,0.32781971]
[1762775040508,0.05194912,106330.0,106320.0,0.32781971]
[1762775040819,0.05394912,106330.0,106320.0,0.32781971]
[1762775043721,0.05394912,106330.0,106320.0,0.40288363]
[1762775044319,0.05394912,106330.0,106320.0,0.31084937]
[1762775044519,0.05394912,106330.0,106320.0,0.40288363]
[1762775044719,0.05394912,106330.0,106320.0,0.31084937]
[1762775044918,0.25320318,106330.0,106320.0,0.31084937]
[1762775045615,0.15913338,106330.0,106320.0,0.31084937]
[1762775046521,0.05394912,106330.0,106320.0,0.31084937]
[1762775046925,0.05394912,106330.0,106320.0,0.22661252]
[1762775047232,0.14801892,106330.0,106320.0,0.22661252]
[1762775047530,0.05394912,106330.0,106320.0,0.22661252]
[1762775048531,0.14801892,106330.0,106320.0,0.22661252]
[1762775049032,0.05394912,106330.0,106320.0,0.31084937]
[1762775049623,0.05394912,106330.0,106320.0,0.22661252]
[1762775052033,0.14801892,106330.0,106320.0,0.22661252]
[1762775052226,0.24005318,106330.0,106320.0,0.22661252]
[1762775052535,0.24005318,106330.0,106320.0,0.31084937]
[1762775052833,0.25320318,106330.0,106320.0,0.31084937]
[1762775053034,0.25320318,106330.0,106320.0,0.29758937]
[1762775053235,0.25320318,106330.0,106320.0,0.31084937]
[1762775053742,0.25320318,106330.0,106320.0,0.22661252]
[1762775056033,0.15913338,106330.0,106320.0,0.22661252]
[1762775056235,0.06709912,106330.0,106320.0,0.31084937]
[1762775056738,0.05394912,106330.0,106320.0,0.31084937]
[1762775057132,0.16116892,106330.0,106320.0,0.31084937]
[1762775057537,0.25320318,106330.0,106320.0,0.31084937]
[1762775058836,0.25320318,106330.0,106320.0,0.13253392]
[1762775059035,0.25320318,106330.0,106320.0,0.11927392]
[1762775059635,0.25320318,106330.0,106320.0,0.21335252]
[1762775060128,0.25320318,106330.0,106320.0,0.11927392]
[1762775060336,0.25320318,106330.0,106320.0,0.21335252]
[1762775068840,0.25320318,106330.0,106320.0,0.11927392]
[1762775069239,0.25320318,106330.0,106320.0,0.07506392]
[1762775069440,0.1520887,106320.0,106310.0,0.1393869]
[1762775069642,0.57020099,106320.0,106310.0,0.1393869]
[1762775069843,0.57020099,106320.0,106310.0,0.22362375]
[1762775070543,0.57020099,106320.0,106310.0,0.1393869]
[1762775070748,0.57220099,106320.0,106310.0,0.22358325]
[1762775071247,0.57220099,106320.0,106310.0,0.23697325]
[1762775077447,0.48016673,106320.0,106310.0,0.23697325]
[1762775077646,0.35071803,106320.0,106310.0,0.32900751]
[1762775077840,0.00419803,106320.0,106310.0,0.24481116]
[1762775078049,0.002,106320.0,106310.0,0.24481116]
[1762775078250,0.002,106320.0,106310.0,0.36268606]
[1762775078749,0.002,106320.0,106310.0,0.65283062]
[1762775080054,0.002,106320.0,106310.0,0.56869116]
[1762775080253,0.002,106320.0,106310.0,0.68656606]
[1762775081547,0.002,106320.0,106310.0,0.65283673]
[1762775082054,0.002,106320.0,106310.0,0.56869116]
[1762775083553,0.002,106320.0,106310.0,0.68656606]
[1762775085558,0.04480508,106340.0,106330.0,0.1527598]
[1762775085749,0.04700311,106340.0,106330.0,0.24479406]
[1762775087454,0.05200311,106340.0,106330.0,0.24479406]
[1762775087854,0.05500311,106340.0,106330.0,0.24479406]
[1762775088250,0.05500311,106340.0,106330.0,0.05869]
[1762775088251,0.14906401,106340.0,106330.0,0.05869]
[1762775088457,0.16294401,106340.0,106330.0,0.05869]
[1762775088656,0.25497827,106340.0,106330.0,0.05869]
[1762775089047,0.25497827,106340.0,106330.0,0.0453]
[1762775090059,0.0940698,106330.0,106320.0,0.08873093]
[1762775090259,0.24470209,106330.0,106320.0,0.11980093]
[1762775091159,0.24770209,106330.0,106320.0,0.21387963]
[1762775091461,0.24970209,106330.0,106320.0,0.21387963]
[1762775091852,0.24970209,106330.0,106320.0,0.29800379]
[1762775092055,0.24970209,106330.0,106320.0,0.21387963]
[1762775092255,0.24970209,106330.0,106320.0,0.29800379]
[1762775093160,0.24970209,106330.0,106320.0,0.20392509]
[1762775093664,0.24970209,106330.0,106320.0,0.29800369]
[1762775094166,0.24970209,106330.0,106320.0,0.31182369]
[1762775094364,0.15766783,106330.0,106320.0,0.31182369]
[1762775095569,0.15766783,106330.0,106320.0,0.29800369]
[1762775095768,0.24970209,106330.0,106320.0,0.09711093]
[1762775096063,0.24970209,106330.0,106320.0,0.21401953]
[1762775096367,0.15766783,106330.0,106320.0,0.21401953]
[1762775096568,0.15766783,106330.0,106320.0,0.22783953]
[1762775096867,0.14479783,106330.0,106320.0,0.22783953]
[1762775099771,0.15811783,106330.0,106320.0,0.22783953]
[1762775100977,0.25013707,106330.0,106320.0,0.31985877]
[1762775101772,0.14581773,106330.0,106320.0,0.31985877]
[1762775102171,0.23783697,106330.0,106320.0,0.31985877]
[1762775104365,0.23783697,106330.0,106320.0,0.40398293]
[1762775111388,0.25115697,106330.0,106320.0,0.40398293]
[1762775112285,0.25115707,106330.0,106320.0,0.40398293]
[1762775112678,0.23783707,106330.0,106320.0,0.40398293]
[1762775115087,0.14376727,106330.0,106320.0,0.40398293]
[1762775116891,0.05174803,106330.0,106320.0,0.40398293]
[1762775117188,0.14376727,106330.0,106320.0,0.40398293]
[1762775117388,0.23783697,106330.0,106320.0,0.40398293]
[1762775121095,0.14581773,106330.0,106320.0,0.40398293]
[1762775121287,0.23783697,106330.0,106320.0,0.40398293]
[1762775121494,0.23783697,106330.0,106320.0,0.31196369]
[1762775121794,0.14581773,106330.0,106320.0,0.40398293]
[1762775122092,0.23783697,106330.0,106320.0,0.31985877]
[1762775123694,0.14376727,106330.0,106320.0,0.31985877]
[1762775124195,0.23783717,106330.0,106320.0,0.31985877]
[1762775124693,0.23783717,106330.0,106320.0,0.40398293]
[1762775124894,0.05174803,106330.0,106320.0,0.41187801]
[1762775125096,0.37558803,106330.0,106320.0,0.41187801]
[1762775125398,0.37558803,106330.0,106320.0,0.49600217]
[1762775125693,0.00719803,106330.0,106320.0,0.73571801]
[1762775128697,0.03038803,106330.0,106320.0,0.73571801]
[1762775129097,0.05337803,106330.0,106320.0,0.73571801]
[1762775129999,0.14744783,106330.0,106320.0,0.73571801]
[1762775130200,0.14744783,106330.0,106320.0,0.81984217]
[1762775130995,0.05337803,106330.0,106320.0,0.81984217]
[1762775131597,0.00719803,106330.0,106320.0,0.81984217]
[1762775131800,0.00719803,106330.0,106320.0,0.73571801]
[1762775132189,0.00719803,106330.0,106320.0,0.85359291]
[1762775133403,0.005,106330.0,106320.0,0.93773589]
[1762775133898,0.005,106330.0,106320.0,0.73571801]
[1762775134493,0.005,106330.0,106320.0,0.81985272]
[1762775136505,0.005,106330.0,106320.0,0.85359291]
[1762775138905,0.002,106330.0,106320.0,0.85359291]
[1762775139098,0.001,106330.0,106320.0,0.80899291]
[1762775139298,0.001,106330.0,106320.0,0.85311291]
[1762775140401,0.32407508,106340.0,106330.0,0.1516098]
[1762775140402,0.00023508,106340.0,106330.0,0.1516098]
[1762775140601,0.09649411,106340.0,106330.0,0.3277436]
[1762775140800,0.14267411,106340.0,106330.0,0.3277436]
[1762775141603,0.04861311,106340.0,106330.0,0.3277436]
[1762775141806,0.05161311,106340.0,106330.0,0.3277436]
[1762775142704,0.05361311,106340.0,106330.0,0.3277436]
[1762775143795,0.14767411,106340.0,106330.0,0.3277436]
[1762775144192,0.05361311,106340.0,106330.0,0.3277436]
[1762775144710,0.05361311,106340.0,106330.0,0.24362904]
[1762775145298,0.14767411,106340.0,106330.0,0.24362904]
[1762775146908,0.14767411,106340.0,106330.0,0.3277436]
[1762775147208,0.14767411,106340.0,106330.0,0.24362904]
[1762775147507,0.24863335,106340.0,106330.0,0.24362904]
[1762775147709,0.24863335,106340.0,106330.0,0.14955924]
[1762775148100,0.24863335,106340.0,106330.0,0.2336738]
[1762775148301,0.23969335,106340.0,106330.0,0.3277437]
[1762775150012,0.14767411,106340.0,106330.0,0.3277437]
[1762775151509,0.14767411,106340.0,106330.0,0.2336738]
[1762775151710,0.14767411,106340.0,106330.0,0.3277436]
[1762775161322,0.23969335,106340.0,106330.0,0.3277436]
[1762775161821,0.23969335,106340.0,106330.0,0.24362904]
[1762775162323,0.14767411,106340.0,106330.0,0.24362904]
[1762775163118,0.14767411,106340.0,106330.0,0.24360084]
[1762775164919,0.14767411,106340.0,106330.0,0.3277154]
[1762775166518,0.12468411,106340.0,106330.0,0.3277154]
[1762775167125,0.14678411,106340.0,106330.0,0.3277154]
[1762775170323,0.05272311,106340.0,106330.0,0.3277154]
[1762775170918,0.14678411,106340.0,106330.0,0.3277154]
[1762775173516,0.14678411,106340.0,106330.0,0.24360084]
[1762775173917,0.14678411,106340.0,106330.0,0.1516098]
[1762775174223,0.14678411,106340.0,106330.0,0.24360084]
[1762775176111,0.14678411,106340.0,106330.0,0.3277154]
[1762775181827,0.14678411,106340.0,106330.0,0.24360084]
[1762775183828,0.05272311,106340.0,106330.0,0.24360084]
[1762775185119,0.05272311,106340.0,106330.0,0.3277154]
[1762775186730,0.14678421,106340.0,106330.0,0.3277154]
[1762775187132,0.05272311,106340.0,106330.0,0.3277154]
[1762775195827,0.00523508,106340.0,106330.0,0.3277154]
[1762775196027,0.00523508,106340.0,106330.0,0.28913998]
[1762775196429,0.1381139,106360.0,106350.0,0.1508922]
[1762775196630,0.14031193,106360.0,106350.0,0.3269978]
[1762775197539,0.14431193,106360.0,106350.0,0.24288324]
[1762775197938,0.14731193,106360.0,106350.0,0.24288324]
[1762775198435,0.14731193,106360.0,106350.0,0.31016253]
[1762775201737,0.14731193,106360.0,106350.0,0.21611033]
[1762775201938,0.14731193,106360.0,106350.0,0.31016253]
[1762775202336,0.16111193,106360.0,106350.0,0.12411929]
[1762775202937,0.25310297,106360.0,106350.0,0.12411929]
[1762775203324,0.25310297,106360.0,106350.0,0.21817149]
[1762775203936,0.16111193,106360.0,106350.0,0.21817149]
[1762775205732,0.14731143,106360.0,106350.0,0.31016253]
[1762775206230,0.05326803,106360.0,106350.0,0.31016253]
[1762775206444,0.05326803,106360.0,106350.0,0.23500676]
[1762775206638,0.05326803,106360.0,106350.0,0.24288324]
[1762775207140,0.14331143,106360.0,106350.0,0.24288324]
[1762775207440,0.14531143,106360.0,106350.0,0.24288324]
[1762775207637,0.05126803,106360.0,106350.0,0.24288324]
[1762775207941,0.14531143,106360.0,106350.0,0.24288324]
[1762775208336,0.14531143,106360.0,106350.0,0.31009903]
[1762775209634,0.14331143,106360.0,106350.0,0.31009903]
[1762775209931,0.14331143,106360.0,106350.0,0.21810799]
[1762775210134,0.14331143,106360.0,106350.0,0.31009903]
[1762775210841,0.14331143,106360.0,106350.0,0.21604683]
[1762775211437,0.14331143,106360.0,106350.0,0.31009913]
[1762775215438,0.14331143,106360.0,106350.0,0.21604683]
[1762775216242,0.14331143,106360.0,106350.0,0.31009903]
[1762775224456,0.14331143,106360.0,106350.0,0.24288324]
[1762775224659,0.04926803,106360.0,106350.0,0.24288324]
[1762775224859,0.04926803,106360.0,106350.0,0.3269486]
[1762775225246,0.02766803,106360.0,106350.0,0.3269486]
[1762775225557,0.05017803,106360.0,106350.0,0.3269486]
[1762775226155,0.00519803,106360.0,106350.0,0.3269486]
[1762775226347,0.02767803,106360.0,106350.0,0.3269486]
[1762775226657,0.23617257,106360.0,106350.0,0.14095456]
[1762775226848,0.34153441,106360.0,106350.0,0.12824456]
[1762775227051,0.24959257,106360.0,106350.0,0.1114329]
[1762775227253,0.24959257,106360.0,106350.0,0.2054844]
[1762775227448,0.24959257,106360.0,106350.0,0.29742624]
[1762775227645,0.24959257,106360.0,106350.0,0.2054844]
[1762775227846,0.24959257,106360.0,106350.0,0.24378334]
[1762775228059,0.24959257,106360.0,106350.0,0.23595606]
[1762775228451,0.24959257,106360.0,106350.0,0.24378334]
[1762775228651,0.24959257,106360.0,106350.0,0.3278979]
[1762775229258,0.24959257,106360.0,106350.0,0.2201864]
[1762775229460,0.34153441,106360.0,106350.0,0.12824456]
[1762775229655,0.24959257,106360.0,106350.0,0.12824456]
[1762775230657,0.24959257,106360.0,106350.0,0.22229656]
[1762775231557,0.34153441,106360.0,106350.0,0.22229656]
[1762775234261,0.34153441,106360.0,106350.0,0.12824456]
[1762775234472,0.34153441,106360.0,106350.0,0.04413]
[1762775234666,0.34153441,106360.0,106350.0,0.06731866]
[1762775234962,0.34153441,106360.0,106350.0,0.09000866]
[1762775235161,0.34153441,106360.0,106350.0,0.11158866]
[1762775236058,0.34153441,106360.0,106350.0,0.06731866]
[1762775236267,0.1524622,106350.0,106340.0,0.11172975]
[1762775236562,0.57020207,106350.0,106340.0,0.11172975]
[1762775238158,0.57020207,106350.0,106340.0,0.20579075]
[1762775238361,0.57020207,106350.0,106340.0,0.11172975]
[1762775240064,0.57020207,106350.0,106340.0,0.09014975]
[1762775240266,0.57020207,106350.0,106340.0,0.06745975]
[1762775240466,0.66214391,106350.0,106340.0,0.06745975]
[1762775240765,0.66214391,106350.0,106340.0,0.00014109]
[1762775247373,0.66214391,106350.0,106340.0,0.02221109]
[1762775248670,0.66214391,106350.0,106340.0,0.00014109]
[1762775250975,0.66214391,106350.0,106340.0,0.09420229]
[1762775251776,0.57020207,106350.0,106340.0,0.11627229]
[1762775251969,0.66214391,106350.0,106340.0,0.11627229]
[1762775252375,0.24660207,106350.0,106340.0,0.13767229]
[1762775252565,0.57024207,106350.0,106340.0,0.15065229]